bitfinex-derivatives/quotes_SOLF0:USTF0_20251020
["timestamp","ask_amount","ask_price","bid_price","bid_amount"]
[1760920387236,4.03191856,183.94,183.88,4.8926]
[1760920387638,4.03191856,183.93,183.88,4.8926]
[1760920387846,6.91191856,183.95,183.9,4.8923]
[1760920388034,2.88,183.95,183.9,4.8923]
[1760920388346,9.6154946,183.99,183.9,2.9]
[1760920388347,4.03191856,183.97,183.9,2.9]
[1760920388542,6.91191856,183.99,183.9,2.9]
[1760920388746,2.88,183.99,183.9,2.9]
[1760920389339,4.03191856,183.98,183.81,2.9]
[1760920389538,4.8918,183.93,183.84,4.8937]
[1760920389738,2.88,183.92,183.81,2.9]
[1760920390744,2.88,183.94,183.73,2.9]
[1760920390942,6.91191856,183.94,183.73,2.9]
[1760920391141,2.88,183.9,183.81,4.8944]
[1760920391543,2.88,183.9,183.78,2.9]
[1760920392146,2.88,183.9,183.83,4.8942]
[1760920392548,2.88,183.9,183.78,2.9]
[1760920392747,2.88,183.9,183.83,4.8942]
[1760920393047,2.88,183.9,183.78,2.9]
[1760920393750,2.88,183.9,183.83,4.8941]
[1760920394746,2.72,183.94,183.77,2.92]
[1760920395148,4.02532734,183.97,183.77,2.92]
[1760920396048,4.02532734,183.97,183.79,2.92]
[1760920396351,2.72,183.93,183.79,2.92]
[1760920396648,6.74532734,183.93,183.79,2.92]
[1760920396855,2.72,183.93,183.83,2.92]
[1760920397952,2.72,183.93,183.85,4.8936]
[1760920399045,4.03166997,183.93,183.76,2.76]
[1760920399250,2.68,183.92,183.76,2.76]
[1760920399646,2.68,183.92,183.82,4.8944]
[1760920399857,2.68,183.91,183.82,4.8944]
[1760920401156,7.5723,183.91,183.82,4.8944]
[1760920401361,2.68,183.91,183.8,4.8949]
[1760920401552,2.68,183.88,183.67,22.13523814]
[1760920401858,2.68,183.88,183.69,2.76]
[1760920402853,2.68,183.88,183.68,47.08]
[1760920403058,2.68,183.92,183.72,2.76]
[1760920403261,2.68,183.92,183.74,2.76]
[1760920403457,2.68,183.92,183.79,2.76]
[1760920403951,4.03355911,183.94,183.89,7.6523]
[1760920404252,4.03355911,183.94,183.78,9.7909]
[1760920404253,6.715159,183.97,183.79,2.76]
[1760920404458,15.62598139,183.97,183.79,2.76]
[1760920404658,2.68,183.95,183.79,2.76]
[1760920404855,6.715159,183.95,183.79,2.76]
[1760920405652,6.715159,183.95,183.86,4.8931]
[1760920406355,2.68,183.95,183.88,4.8928]
[1760920406859,2.68,183.95,183.89,4.8923]
[1760920407456,4.03538807,183.97,183.88,2.76]
[1760920407855,78.39934156,183.98,183.88,2.76]
[1760920408458,78.39934156,183.98,183.92,4.8915]
[1760920410652,78.39934156,183.98,183.88,2.76]
[1760920411363,2.68,183.99,183.94,4.8911]
[1760920411559,2.68,184.0,183.94,4.8911]
[1760920411762,2.68,184.0,183.9,4.8923]
[1760920411763,11.60383158,184.0,183.9,4.8923]
[1760920411963,2.68,183.98,183.9,4.8923]
[1760920412362,2.68,183.98,183.92,4.8918]
[1760920413657,2.68,183.98,183.9,4.8923]
[1760920413861,2.68,183.98,183.77,18.70202239]
[1760920413862,2.68,183.96,183.78,2.76]
[1760920414057,6.71413158,183.96,183.78,2.76]
[1760920414455,6.71413158,183.96,183.87,4.8931]
[1760920414653,5.42063122,183.94,183.87,4.8931]
[1760920415252,5.42063122,183.94,183.76,5.42063122]
[1760920415253,5.42063122,183.94,183.85,2.76]
[1760920415664,2.68,183.93,183.87,4.8929]
[1760920416468,6.71193637,183.93,183.85,4.8936]
[1760920417359,6.71193637,183.93,183.83,4.8941]
[1760920417666,2.68,183.99,183.81,2.76]
[1760920418054,6.71428747,183.99,183.81,2.76]
[1760920418259,6.71428747,183.99,183.9,4.8921]
[1760920418460,10.60818367,183.99,183.9,4.8921]
[1760920418964,6.71428747,183.99,183.91,4.8918]
[1760920419160,5.42063122,184.0,183.87,2.76]
[1760920419365,4.03560241,184.02,183.96,4.8905]
[1760920419571,2.68,184.03,183.93,2.76]
[1760920419863,4.87729936,184.1,183.88,5.42063122]
[1760920419864,4.87729936,184.1,184.01,2.76]
[1760920420056,2.68,184.12,184.01,2.76]
[1760920420262,5.42063122,184.14,184.01,2.76]
[1760920420460,5.42063122,184.14,184.06,4.888]
[1760920420965,5.42063122,184.14,183.96,19.70063122]
[1760920420966,5.42063122,184.14,184.08,4.8873]
[1760920421466,2.68,184.17,184.08,4.8873]
[1760920421762,2.68,184.22,184.08,2.76]
[1760920422368,18.7467441,184.22,184.09,4.8871]
[1760920422662,18.7467441,184.22,184.08,2.76]
[1760920422663,5.42063122,184.19,184.08,2.76]
[1760920422860,2.68,184.22,184.08,2.76]
[1760920423061,5.42063122,184.21,184.08,2.76]
[1760920423260,8.10063122,184.22,184.11,4.8866]
[1760920423760,8.10063122,184.22,184.08,2.76]
[1760920423964,43.1,184.24,184.07,2.76]
[1760920424162,8.10063122,184.26,184.07,2.76]
[1760920424359,24.01741402,184.26,184.07,2.76]
[1760920424566,8.10063122,184.26,184.07,2.76]
[1760920424764,8.10063122,184.26,184.15,7.6455]
[1760920426863,5.42063122,184.22,184.12,4.8864]
[1760920427059,5.42063122,184.22,184.13,2.82]
[1760920427368,8.34063122,184.26,184.13,2.82]
[1760920427765,8.34063122,184.26,184.14,4.8858]
[1760920427966,8.34063122,184.26,184.13,2.82]
[1760920428365,8.34063122,184.26,184.18,7.7046]
[1760920428960,8.34063122,184.26,184.2,4.8842]
[1760920429160,21.62034065,184.3,184.2,4.8842]
[1760920429471,21.62034065,184.3,184.18,2.82]
[1760920429472,5.42063122,184.3,184.18,2.82]
[1760920429665,5.42063122,184.3,184.22,2.82]
[1760920429865,2.92,184.36,184.22,2.82]
[1760920430766,2.92,184.36,184.27,7.7024]
[1760920430968,2.92,184.36,184.27,2.82]
[1760920431169,2.78,184.46,184.27,2.82]
[1760920431468,8.34063122,184.42,184.3,2.82]
[1760920431665,5.42063122,184.38,184.3,2.82]
[1760920433169,18.98534835,184.46,184.24,2.82]
[1760920433368,5.42063122,184.44,184.27,2.82]
[1760920433562,5.42063122,184.4,184.27,2.82]
[1760920434170,5.42063122,184.42,184.27,2.82]
[1760920434766,5.42063122,184.42,184.23,2.82]
[1760920435072,5.42063122,184.42,184.35,4.8802]
[1760920435265,5.42063122,184.42,184.32,2.82]
[1760920435460,2.92,184.43,184.37,4.8797]
[1760920435674,5.42063122,184.45,184.37,4.8797]
[1760920436266,5.42063122,184.45,184.39,4.8792]
[1760920436469,2.92,184.46,184.35,2.82]
[1760920436663,5.42063122,184.45,184.36,4.88]
[1760920437367,5.42063122,184.45,184.19,9.769]
[1760920437368,5.42063122,184.41,184.3,4.8816]
[1760920437674,5.42063122,184.41,184.29,2.82]
[1760920437675,5.42063122,184.37,184.29,2.82]
[1760920438070,5.42063122,184.37,184.29,7.7018]
[1760920438566,2.92,184.45,184.3,2.82]
[1760920438767,2.92,184.45,184.24,2.82]
[1760920438768,5.42063122,184.42,184.24,2.82]
[1760920439066,5.42063122,184.38,184.26,2.82]
[1760920439270,5.42063122,184.38,184.31,4.8813]
[1760920439868,5.42063122,184.38,184.3,2.82]
[1760920440073,2.92,184.37,184.28,4.8821]
[1760920440470,2.92,184.37,184.3,4.8816]
[1760920441174,5.42063122,184.38,184.3,4.8816]
[1760920441175,5.42063122,184.38,184.32,4.881]
[1760920441966,5.42063122,184.42,184.34,4.8805]
[1760920442276,16.60937808,184.5,184.35,2.82]
[1760920442277,2.92,184.48,184.35,2.82]
[1760920442868,5.42063122,184.5,184.35,2.82]
[1760920443074,2.92,184.53,184.37,2.82]
[1760920443275,2.92,184.53,184.47,4.8771]
[1760920443978,79.64496804,184.57,184.44,2.82]
[1760920443979,5.42063122,184.58,184.49,4.8766]
[1760920444270,5.42063122,184.58,184.44,2.82]
[1760920444775,5.42063122,184.58,184.39,5.42063122]
[1760920444776,5.42063122,184.58,184.51,4.8759]
[1760920444976,2.92,184.59,184.49,2.82]
[1760920445474,5.42063122,184.62,184.53,4.8755]
[1760920446079,5.42063122,184.62,184.49,2.82]
[1760920446380,2.92,184.56,184.39,8.24063122]
[1760920446673,5.42063122,184.54,184.39,2.82]
[1760920446872,2.92,184.53,184.39,2.82]
[1760920447071,2.92,184.49,184.39,2.82]
[1760920447272,2.92,184.49,184.4,4.8789]
[1760920447467,2.92,184.57,184.4,4.8789]
[1760920447674,2.92,184.51,184.39,2.82]
[1760920449074,5.42063122,184.52,184.39,2.82]
[1760920449469,8.34063122,184.56,184.37,46.92]
[1760920449673,8.34063122,184.56,184.38,2.82]
[1760920449977,8.34063122,184.56,184.39,7.06]
[1760920450279,8.34063122,184.56,184.36,5.42063122]
[1760920450280,8.34063122,184.56,184.45,4.8775]
[1760920450477,8.34063122,184.56,184.4,2.82]
[1760920450478,2.92,184.55,184.4,2.82]
[1760920450670,2.92,184.51,184.4,2.82]
[1760920450867,2.92,184.51,184.34,46.92]
[1760920451175,2.92,184.51,184.35,2.82]
[1760920451770,2.81,184.47,184.38,2.82]
[1760920452575,8.23063122,184.44,184.35,4.8802]
[1760920453375,8.23063122,184.44,184.32,2.69]
[1760920453376,8.23063122,184.44,184.37,4.8798]
[1760920453593,5.42063122,184.48,184.36,2.69]
[1760920454374,5.42063122,184.52,184.36,2.69]
[1760920454984,8.23063122,184.52,184.36,2.69]
[1760920455476,5.42063122,184.48,184.41,4.8787]
[1760920455869,2.81,184.49,184.43,4.8781]
[1760920456577,5.42063122,184.53,184.45,4.8776]
[1760920457081,2.81,184.55,184.45,4.8776]
[1760920457579,2.81,184.55,184.4,2.69]
[1760920457580,2.81,184.55,184.47,4.8771]
[1760920458178,2.81,184.55,184.49,4.8766]
[1760920458585,2.81,184.55,184.44,2.86]
[1760920458775,2.81,184.59,184.44,2.86]
[1760920459282,2.81,184.59,184.53,4.8755]
[1760920459676,2.81,184.59,184.48,2.86]
[1760920459876,2.81,184.59,184.5,4.8762]
[1760920460780,10.29413122,184.61,184.47,4.877]
[1760920460981,2.81,184.6,184.47,4.877]
[1760920461185,2.81,184.56,184.47,4.877]
[1760920463584,2.81,184.56,184.47,2.86]
[1760920464081,5.42063122,184.61,184.53,4.8755]
[1760920464082,2.81,184.6,184.53,4.8755]
[1760920464285,2.81,184.6,184.47,2.86]
[1760920464678,2.81,184.6,184.52,4.8759]
[1760920465079,2.81,184.6,184.45,19.36]
[1760920465579,2.81,184.6,184.43,5.42063122]
[1760920465787,7.6838,184.6,184.49,4.8764]
[1760920466100,7.6838,184.6,184.43,13.74063122]
[1760920466101,2.81,184.6,184.43,13.74063122]
[1760920466292,2.81,184.6,184.44,2.86]
[1760920466492,2.81,184.6,184.51,4.8761]
[1760920467294,2.81,184.59,184.48,4.8767]
[1760920467490,8.64137427,184.61,184.48,4.8767]
[1760920467696,2.81,184.59,184.48,4.8767]
[1760920468193,11.66401144,184.59,184.5,4.8764]
[1760920468496,2.81,184.57,184.5,4.8764]
[1760920469297,6.79001144,184.57,184.5,4.8764]
[1760920469500,2.81,184.57,184.5,4.8764]
[1760920469997,2.81,184.57,184.47,4.8769]
[1760920470196,6.79001144,184.56,184.47,4.8769]
[1760920470402,2.81,184.54,184.47,4.8769]
[1760920470592,3.98001144,184.53,184.47,4.8769]
[1760920470791,2.81,184.51,184.47,4.8769]
[1760920471097,2.81,184.53,184.47,4.8769]
[1760920471398,2.81,184.51,184.47,4.8769]
[1760920471696,4.68249777,184.55,184.47,4.8769]
[1760920471897,11.49453896,184.54,184.47,4.8769]
[1760920472099,4.00204119,184.53,184.47,4.8769]
[1760920472391,2.81,184.54,184.38,5.42063122]
[1760920472392,2.81,184.51,184.45,4.8777]
[1760920472597,2.81,184.49,184.45,4.8777]
[1760920473598,7.49782321,184.5,184.43,4.8782]
[1760920473900,2.81,184.48,184.36,5.42063122]
[1760920474098,8.70604769,184.47,184.35,2.86]
[1760920474301,2.81,184.48,184.32,5.42063122]
[1760920474302,7.60078707,184.45,184.32,5.42063122]
[1760920474496,8.70604769,184.44,184.32,5.42063122]
[1760920474694,8.70604769,184.43,184.32,5.42063122]
[1760920474894,8.7111946,184.42,184.37,4.8796]
[1760920475097,4.01237683,184.41,184.33,2.86]
[1760920475398,2.81,184.45,184.33,2.86]
[1760920475598,8.72119342,184.44,184.33,2.86]
[1760920475792,13.51126524,184.43,184.33,2.86]
[1760920475995,13.51126524,184.42,184.33,2.86]
[1760920476199,8.72047817,184.41,184.33,2.86]
[1760920476500,8.72047817,184.4,184.33,2.86]
[1760920476700,4.01865988,184.39,184.33,2.86]
[1760920476896,8.72184566,184.38,184.33,2.86]
[1760920477095,4.01865988,184.37,184.32,2.86]
[1760920477397,4.79078707,184.45,184.39,2.86]
[1760920477601,2.81,184.47,184.34,2.86]
[1760920477804,9.49628827,184.46,184.34,2.86]
[1760920478102,4.7055012,184.45,184.34,2.86]
[1760920478303,2.81,184.47,184.34,2.86]
[1760920478504,7.48740657,184.47,184.34,2.86]
[1760920478697,7.48740657,184.47,184.33,8.87262244]
[1760920478698,4.67740657,184.48,184.4,2.86]
[1760920478900,2.81,184.52,184.4,2.86]
[1760920479098,4.67784652,184.54,184.41,8.87262244]
[1760920479295,6.33352662,184.57,184.41,8.87262244]
[1760920479296,2.81,184.57,184.43,2.86]
[1760920479699,2.81,184.57,184.52,4.8758]
[1760920480004,7.4896788,184.58,184.47,2.86]
[1760920480198,2.81,184.58,184.52,4.8758]
[1760920480499,2.81,184.58,184.47,2.86]
[1760920480700,4.6796788,184.57,184.47,2.86]
[1760920480893,2.81,184.56,184.43,2.86]
[1760920481093,7.4896788,184.56,184.43,2.86]
[1760920481298,2.81,184.56,184.43,2.86]
[1760920482297,2.81,184.56,184.48,4.8768]
[1760920483701,2.81,184.55,184.46,4.8775]
[1760920484101,4.8754,184.54,184.43,7.738]
[1760920484296,2.81,184.53,184.39,2.86]
[1760920484698,11.37200166,184.53,184.39,2.86]
[1760920485005,7.4896788,184.53,184.39,2.86]
[1760920486095,11.37493124,184.53,184.44,4.8777]
[1760920486299,7.4896788,184.53,184.44,4.8777]
[1760920486500,2.81,184.53,184.44,4.8777]
[1760920486701,7.4896788,184.53,184.44,4.8777]
[1760920486904,2.81,184.53,184.44,4.8777]
[1760920487102,2.81,184.53,184.41,2.77]
[1760920487303,7.62078707,184.53,184.34,2.77]
[1760920487502,16.18742218,184.53,184.34,2.77]
[1760920487708,2.83,184.51,184.34,2.77]
[1760920487901,2.83,184.51,184.4,2.77]
[1760920489008,2.83,184.51,184.44,4.8779]
[1760920490806,2.83,184.51,184.41,4.8785]
[1760920492011,4.8765,184.5,184.41,4.8785]
[1760920493606,2.83,184.49,184.41,4.8785]
[1760920494608,2.83,184.49,184.4,2.77]
[1760920496112,2.83,184.49,184.41,4.8788]
[1760920498116,2.83,184.49,184.39,4.8793]
[1760920498117,2.83,184.47,184.39,4.8793]
[1760920498616,2.83,184.47,184.39,7.6493]
[1760920499011,2.83,184.47,184.37,4.8798]
[1760920499519,2.83,184.47,184.3,55.77262244]
[1760920499520,7.7074,184.47,184.39,4.8793]
[1760920500220,15.20614906,184.55,184.38,2.77]
[1760920500221,4.8766,184.5,184.38,2.77]
[1760920500423,2.83,184.51,184.38,2.77]
[1760920500716,2.83,184.51,184.42,2.77]
[1760920500917,11.53338373,184.55,184.42,2.77]
[1760920501114,4.01086049,184.54,184.42,2.77]
[1760920501312,2.83,184.55,184.43,2.77]
[1760920502018,2.83,184.55,184.47,2.77]
[1760920502219,4.0102257,184.56,184.47,2.77]
[1760920502416,2.83,184.55,184.41,2.77]
[1760920502618,13.66340951,184.55,184.32,2.77]
[1760920502821,2.83,184.53,184.33,2.77]
[1760920503023,11.53139639,184.53,184.42,2.77]
[1760920503323,2.83,184.53,184.42,2.77]
[1760920503824,2.83,184.53,184.47,4.8772]
[1760920504526,85.47629926,184.58,184.49,4.8766]
[1760920504726,4.01227128,184.57,184.49,4.8766]
[1760920505022,4.01227128,184.57,184.47,2.77]
[1760920505223,4.01227128,184.57,184.51,4.8761]
[1760920505526,80.60199926,184.58,184.51,4.8761]
[1760920506318,4.01266071,184.57,184.49,4.8767]
[1760920506533,2.83,184.56,184.47,2.77]
[1760920506818,4.8751,184.55,184.46,4.8773]
[1760920507024,8.88725218,184.55,184.46,4.8773]
[1760920507524,2.83,184.52,184.43,7.6481]
[1760920508124,11.53474409,184.52,184.43,7.6481]
[1760920508325,2.83,184.52,184.43,7.6481]
[1760920508923,2.83,184.52,184.43,2.77]
[1760920509124,9.67899463,184.55,184.43,2.77]
[1760920509323,8.81668855,184.54,184.43,2.77]
[1760920509525,2.83,184.56,184.43,2.77]
[1760920509921,4.80432803,184.57,184.43,2.77]
[1760920510118,77.77199926,184.58,184.43,2.77]
[1760920510322,77.77199926,184.58,184.45,2.77]
[1760920510530,77.77199926,184.58,184.47,2.77]
[1760920510723,2.83,184.64,184.48,2.77]
[1760920510925,2.83,184.64,184.57,4.8743]
[1760920511329,2.83,184.64,184.55,2.77]
[1760920511524,2.83,184.64,184.59,4.874]
[1760920511922,2.83,184.64,184.56,4.8746]
[1760920512126,4.01159773,184.67,184.46,8.87262244]
[1760920512326,2.9,184.63,184.45,2.71]
[1760920512628,2.9,184.59,184.45,2.71]
[1760920513229,2.9,184.63,184.51,2.71]
[1760920513425,4.0193518,184.66,184.51,2.71]
[1760920513635,11.71893093,184.68,184.51,2.71]
[1760920513827,4.0193518,184.67,184.51,2.71]
[1760920514027,18.9638404,184.72,184.59,2.71]
[1760920514229,8.81656403,184.71,184.59,2.71]
[1760920514733,2.9,184.76,184.64,2.71]
[1760920515233,2.9,184.76,184.67,4.8717]
[1760920515926,2.9,184.76,184.69,4.8712]
[1760920516129,49.76,184.81,184.69,4.8712]
[1760920516633,49.76,184.81,184.68,2.71]
[1760920516832,2.9,184.79,184.63,2.71]
[1760920517033,6.90530702,184.79,184.63,2.71]
[1760920517331,2.71,184.77,184.63,2.71]
[1760920517831,2.71,184.77,184.68,4.8715]
[1760920518032,55.73262244,184.81,184.67,2.81]
[1760920518238,55.73262244,184.81,184.71,2.81]
[1760920518424,46.86,184.81,184.71,2.81]
[1760920518934,2.71,184.82,184.71,2.81]
[1760920520033,2.71,184.82,184.72,4.8705]
[1760920520629,123.21842055,184.85,184.71,2.81]
[1760920520630,2.71,184.84,184.74,4.8699]
[1760920520826,2.71,184.84,184.71,2.81]
[1760920521228,2.71,184.84,184.73,4.8702]
[1760920521429,2.71,184.84,184.71,2.81]
[1760920522032,2.71,184.84,184.72,8.14]
[1760920522435,2.71,184.84,184.73,2.81]
[1760920522634,2.71,184.84,184.74,4.8699]
[1760920522836,2.71,184.84,184.72,8.14]
[1760920523436,2.71,184.84,184.73,2.81]
[1760920524831,2.71,184.84,184.73,7.6803]
[1760920525734,2.71,184.84,184.72,8.14]
[1760920525735,2.71,184.87,184.76,4.8693]
[1760920526239,2.71,184.87,184.75,2.81]
[1760920526537,2.71,184.85,184.75,2.81]
[1760920529037,2.71,184.85,184.75,7.6797]
[1760920529534,2.71,184.85,184.77,4.8692]
[1760920530137,2.71,184.88,184.77,4.8692]
[1760920530440,4.8667,184.87,184.77,7.6792]
[1760920530635,2.71,184.86,184.74,4.8699]
[1760920530837,11.58262244,184.85,184.73,2.81]
[1760920532044,16.44992244,184.85,184.73,7.6803]
[1760920533542,2.71,184.85,184.73,2.81]
[1760920534045,11.58262244,184.85,184.73,2.81]
[1760920534744,8.87262244,184.81,184.72,8.14]
[1760920534945,2.71,184.8,184.72,8.14]
[1760920535546,2.71,184.8,184.73,4.8703]
[1760920535846,2.71,184.8,184.72,8.14]
[1760920536742,5.37081928,184.8,184.72,8.14]
[1760920536940,2.71,184.79,184.72,8.14]
[1760920537336,2.71,184.75,184.72,8.14]
[1760920537641,2.71,184.75,184.67,4.8717]
[1760920539549,2.71,184.75,184.66,2.81]
[1760920540944,4.8701,184.74,184.64,7.17]
[1760920541345,2.71,184.75,184.65,2.81]
[1760920541547,7.5798,184.75,184.66,4.8722]
[1760920542845,4.8703,184.74,184.65,2.81]
[1760920543046,5.37081928,184.75,184.64,7.17]
[1760920543248,2.71,184.74,184.64,7.17]
[1760920544750,4.8704,184.73,184.64,7.17]
[1760920545141,2.71,184.74,184.65,2.81]
[1760920546044,2.71,184.74,184.66,4.8722]
[1760920546245,2.71,184.78,184.65,2.81]
[1760920546644,11.56276967,184.78,184.68,2.81]
[1760920546845,4.79574747,184.77,184.68,2.81]
[1760920547047,7.5792,184.78,184.68,2.81]
[1760920547253,4.8696,184.76,184.67,4.8717]
[1760920547450,2.84,184.75,184.64,7.17]
[1760920547946,2.84,184.75,184.67,4.8719]
[1760920548645,2.84,184.75,184.68,2.78]
[1760920548842,2.84,184.79,184.68,7.6514]
[1760920549046,7.64620546,184.79,184.68,7.6514]
[1760920549253,7.64620546,184.79,184.68,2.78]
[1760920549454,2.84,184.79,184.68,2.78]
[1760920549953,49.64,184.83,184.71,2.78]
[1760920550147,4.80999976,184.82,184.71,2.78]
[1760920550343,7.64999976,184.81,184.71,2.78]
[1760920550545,53.13352662,184.88,184.65,2.78]
[1760920550546,2.84,184.77,184.65,2.78]
[1760920550949,7.65265888,184.77,184.65,2.78]
[1760920551245,2.84,184.77,184.65,2.78]
[1760920551452,2.84,184.77,184.68,2.78]
[1760920551747,4.81265888,184.76,184.64,9.95]
[1760920551953,4.8701,184.74,184.66,4.872]
[1760920552152,2.84,184.73,184.66,4.872]
[1760920554153,2.84,184.77,184.69,2.78]
[1760920554346,8.84594036,184.76,184.69,2.78]
[1760920554552,2.84,184.77,184.69,2.78]
[1760920554553,4.83570133,184.75,184.69,2.78]
[1760920554847,4.0169552,184.76,184.69,7.6512]
[1760920555154,4.83601217,184.75,184.69,2.78]
[1760920555349,4.02138339,184.76,184.69,2.78]
[1760920555552,4.84169911,184.75,184.73,2.78]
[1760920555852,8.86383581,184.79,184.72,4.8705]
[1760920556046,8.86383581,184.78,184.72,4.8705]
[1760920556251,4.8417305,184.77,184.72,7.6505]
[1760920556452,4.8417305,184.76,184.72,7.6505]
[1760920556754,4.0240513,184.78,184.72,7.6505]
[1760920557050,4.84478166,184.77,184.73,2.78]
[1760920557255,4.84478166,184.76,184.72,7.6505]
[1760920557451,11.71453862,184.75,184.7,4.8711]
[1760920557657,2.84,184.75,184.7,7.6511]
[1760920557850,4.79078707,184.8,184.7,4.8711]
[1760920558052,11.7146218,184.79,184.7,4.8711]
[1760920558249,8.8746218,184.78,184.7,4.8711]
[1760920558453,2.84,184.79,184.7,4.8711]
[1760920558454,8.8746218,184.77,184.7,4.8711]
[1760920558657,8.8746218,184.76,184.7,4.8711]
[1760920558851,8.8746218,184.75,184.7,7.6511]
[1760920559152,4.84698672,184.74,184.7,7.6511]
[1760920559458,12.49978707,184.79,184.7,7.6511]
[1760920559658,8.89417796,184.78,184.7,7.6511]
[1760920559848,8.89417796,184.77,184.7,7.6511]
[1760920560054,8.89417796,184.76,184.7,7.6511]
[1760920560253,8.89417796,184.75,184.7,4.8711]
[1760920560449,12.49978707,184.79,184.71,2.78]
[1760920560450,4.85866072,184.74,184.71,2.78]
[1760920560654,2.84,184.79,184.71,7.6506]
[1760920560948,8.89322408,184.78,184.71,7.6506]
[1760920561153,8.89322408,184.77,184.71,2.78]
[1760920561463,4.79078707,184.84,184.73,2.78]
[1760920561654,4.85892898,184.83,184.73,2.78]
[1760920561953,8.89352454,184.87,184.83,4.8677]
[1760920562150,2.84,184.92,184.84,2.78]
[1760920562350,4.03657557,184.91,184.84,2.78]
[1760920562554,4.79078707,184.95,184.84,2.78]
[1760920562749,2.84,184.93,184.84,2.78]
[1760920562955,13.5493165,184.92,184.78,9.5]
[1760920563156,8.75852943,184.91,184.78,6.72]
[1760920563347,8.75852943,184.9,184.83,4.8677]
[1760920563554,4.03261018,184.89,184.83,2.78]
[1760920563753,8.75602991,184.92,184.83,2.78]
[1760920563950,8.75602991,184.92,184.86,2.78]
[1760920563951,4.03261018,184.91,184.86,2.78]
[1760920564158,2.84,184.93,184.86,2.78]
[1760920564365,4.0299588,184.92,184.86,2.78]
[1760920565160,2.84,184.93,184.87,4.8666]
[1760920565161,4.0299588,184.93,184.87,4.8666]
[1760920565366,4.0299588,184.96,184.86,2.78]
[1760920566059,6.8699588,184.97,184.86,2.78]
[1760920566466,6.8699588,184.97,184.89,4.8661]
[1760920568066,2.84,184.97,184.89,4.8661]
[1760920568470,2.84,184.97,184.86,7.6467]
[1760920568761,8.87777186,184.98,184.86,7.6467]
[1760920568963,2.84,184.96,184.86,7.6467]
[1760920569563,2.84,184.96,184.88,4.8664]
[1760920569767,2.84,184.94,184.78,2.78]
[1760920569967,2.84,184.94,184.8,2.78]
[1760920570569,2.84,184.92,184.8,2.78]
[1760920570864,2.84,184.9,184.8,2.78]
[1760920571066,2.84,184.9,184.81,4.8681]
[1760920571568,2.7,184.94,184.82,2.78]
[1760920572665,1.67081928,184.98,184.77,5.37081928]
[1760920572865,1.67081928,184.98,184.75,16.4595]
[1760920572866,5.37081928,184.99,184.81,2.75]
[1760920573773,4.00851938,185.02,184.81,2.75]
[1760920574070,5.37081928,185.01,184.81,2.75]
[1760920574669,124.2923601,185.03,184.86,2.75]
[1760920574670,5.37081928,184.97,184.86,2.75]
[1760920574867,2.7,184.96,184.86,2.75]
[1760920575470,2.7,184.96,184.78,2.75]
[1760920575774,8.07081928,184.96,184.78,2.75]
[1760920575974,8.07081928,184.96,184.85,4.8671]